bitfinex-derivatives/quotes_BTCF0:USTF0_20241217
["timestamp","ask_amount","ask_price","bid_price","bid_amount"]
[1734453634852,0.046792,106850.0,106840.0,0.407595]
[1734453635051,0.046792,106850.0,106840.0,0.49213493]
[1734453635449,0.046796,106840.0,106830.0,0.8495]
[1734453635646,0.046793,106850.0,106840.0,0.046796]
[1734453635861,0.046793,106850.0,106840.0,0.49213593]
[1734453636355,0.00011622,106860.0,106850.0,0.046792]
[1734453636561,0.00011622,106860.0,106850.0,0.13133193]
[1734453636752,0.00011622,106860.0,106850.0,0.49213193]
[1734453637346,0.04690322,106860.0,106850.0,0.49213193]
[1734453637756,0.04690322,106860.0,106850.0,0.407592]
[1734453638255,0.04690322,106860.0,106850.0,0.49213193]
[1734453638456,0.00011622,106860.0,106850.0,0.49213193]
[1734453638855,0.00011622,106860.0,106850.0,0.78507186]
[1734453639059,0.04818428,106880.0,106870.0,0.046783]
[1734453639256,0.04818428,106880.0,106870.0,0.49212293]
[1734453639455,0.00140428,106880.0,106870.0,0.49212293]
[1734453640062,0.00140428,106880.0,106870.0,0.4921914]
[1734453640765,0.046775,106890.0,106880.0,0.046779]
[1734453640957,0.046775,106890.0,106880.0,0.49211893]
[1734453641753,0.06560358,106890.0,106880.0,0.49211893]
[1734453642455,0.046775,106890.0,106880.0,0.407579]
[1734453642664,0.046775,106890.0,106880.0,0.13131893]
[1734453643766,0.046775,106890.0,106880.0,0.49211893]
[1734453647065,0.407575,106890.0,106880.0,0.01392913]
[1734453647263,0.046779,106880.0,106870.0,6.847e-05]
[1734453647465,0.407579,106880.0,106870.0,6.847e-05]
[1734453647667,0.613079,106880.0,106870.0,6.847e-05]
[1734453648461,2.113079,106880.0,106870.0,6.847e-05]
[1734453651259,2.19761893,106880.0,106870.0,6.847e-05]
[1734453651765,2.113079,106880.0,106870.0,6.847e-05]
[1734453652362,2.19761893,106880.0,106870.0,6.847e-05]
[1734453652661,1.8608,106880.0,106870.0,6.847e-05]
[1734453652865,0.22668144,106890.0,106880.0,0.046779]
[1734453653064,0.27345544,106890.0,106880.0,0.046779]
[1734453653256,0.63425544,106890.0,106870.0,0.04684947]
[1734453653867,0.58748144,106890.0,106870.0,0.04684947]
[1734453654069,0.046779,106880.0,106870.0,0.04684947]
[1734453654972,0.046779,106880.0,106860.0,0.33303619]
[1734453655165,0.046779,106880.0,106860.0,0.34693287]
[1734453655365,0.046779,106880.0,106870.0,0.046782]
[1734453655967,0.046779,106880.0,106870.0,0.04689884]
[1734453656279,0.046779,106880.0,106870.0,0.00011684]
[1734453656464,0.407579,106880.0,106870.0,0.00011684]
[1734453656668,1.907579,106880.0,106870.0,0.00011684]
[1734453657067,1.8608,106880.0,106870.0,0.13143977]
[1734453657360,0.48976315,106900.0,106890.0,0.046774]
[1734453657562,0.83906215,106900.0,106890.0,0.046774]
[1734453657869,0.046774,106890.0,106880.0,0.13131693]
[1734453658172,0.407574,106890.0,106880.0,0.13131693]
[1734453660371,0.407574,106890.0,106880.0,0.046777]
[1734453660768,0.407574,106890.0,106880.0,0.13131693]
[1734453660962,1.97938316,106900.0,106890.0,0.046774]
[1734453661164,1.93149215,106900.0,106890.0,0.13131393]
[1734453661476,0.21959215,106900.0,106890.0,0.21585386]
[1734453661666,0.01889215,106900.0,106890.0,0.49211393]
[1734453662070,0.06566215,106900.0,106890.0,0.49211393]
[1734453663799,0.01889215,106900.0,106890.0,0.49211393]
[1734453664073,1.75987417,106910.0,106900.0,0.04677]
[1734453664264,0.25987417,106910.0,106900.0,0.13130993]
[1734453664672,0.25987417,106910.0,106900.0,0.49210993]
[1734453665764,0.04677,106900.0,106890.0,0.046774]
[1734453665983,0.04677,106900.0,106880.0,0.67284941]
[1734453665984,0.046774,106890.0,106880.0,0.50582741]
[1734453666281,0.251272,106900.0,106890.0,0.046774]
[1734453666474,0.612072,106900.0,106890.0,0.13131393]
[1734453666671,0.612072,106900.0,106890.0,0.08453993]
[1734453666977,0.251272,106900.0,106890.0,0.13131393]
[1734453667679,1.751272,106900.0,106890.0,0.13131393]
[1734453667870,0.2045,106900.0,106890.0,0.49211393]
[1734453668271,0.2045,106900.0,106890.0,0.13131393]
[1734453668875,0.25127,106900.0,106890.0,0.13131393]
[1734453669176,0.25127,106900.0,106890.0,0.49211393]
[1734453669481,0.25127,106900.0,106890.0,0.13131393]
[1734453670373,0.25127,106900.0,106890.0,0.08453993]
[1734453670678,0.25127,106900.0,106880.0,0.01370948]
[1734453670679,0.046774,106890.0,106880.0,0.01370948]
[1734453670867,0.611274,106890.0,106880.0,0.08453993]
[1734453671072,0.611274,106890.0,106880.0,0.13131893]
[1734453671587,0.2037,106890.0,106880.0,0.13131893]
[1734453671772,0.251271,106900.0,106890.0,0.046774]
[1734453671973,0.251271,106900.0,106890.0,0.13131393]
[1734453672972,0.046774,106890.0,106880.0,0.13131793]
[1734453675897,0.046774,106890.0,106880.0,0.49211793]
[1734453676190,0.046774,106890.0,106880.0,0.13131793]
[1734453676382,0.046774,106890.0,106880.0,0.49211793]
[1734453676881,0.046774,106890.0,106880.0,0.13131793]
[1734453678187,0.046774,106890.0,106880.0,0.49211793]
[1734453678587,0.046774,106890.0,106880.0,0.13131793]
[1734453678889,0.2045,106900.0,106880.0,0.49211793]
[1734453679092,0.84310337,106910.0,106900.0,0.04677]
[1734453679386,0.84310337,106910.0,106900.0,0.13130993]
[1734453680300,0.84310337,106910.0,106900.0,0.04677]
[1734453681184,0.84310337,106910.0,106890.0,0.13131193]
[1734453683194,0.84310337,106910.0,106900.0,0.04677]
[1734453683683,0.04677,106900.0,106890.0,0.14376397]
[1734453684488,0.40757,106900.0,106890.0,0.14376397]
[1734453685487,0.046774,106890.0,106880.0,0.51619985]
[1734453685691,0.046774,106890.0,106880.0,0.13131693]
[1734453686495,0.43553537,106910.0,106890.0,0.046774]
[1734453686791,0.43553537,106910.0,106900.0,0.13130993]
[1734453686996,0.48230037,106910.0,106900.0,0.13130993]
[1734453687385,0.84310037,106910.0,106900.0,0.13130993]
[1734453691402,0.48230037,106910.0,106900.0,0.13130993]
[1734453694102,1.98230037,106910.0,106900.0,0.13130993]
[1734453694602,0.48230037,106910.0,106900.0,0.13130993]
[1734453695006,1.98230037,106910.0,106900.0,0.13130993]
[1734453696804,0.04677,106900.0,106880.0,0.80988015]
[1734453697007,0.046774,106890.0,106880.0,0.06254656]
[1734453697211,0.046774,106890.0,106880.0,0.14708849]
[1734453697507,0.407572,106900.0,106880.0,0.14708449]
[1734453697701,0.407572,106900.0,106890.0,0.13131393]
[1734453698409,0.407572,106900.0,106890.0,0.046774]
[1734453701917,0.407572,106900.0,106880.0,0.14708649]
[1734453701918,0.046774,106890.0,106880.0,0.14708649]
[1734453702212,0.046779,106880.0,106870.0,0.82792]
[1734453702516,1.12011893,106880.0,106870.0,0.38685908]
[1734453702700,1.12011893,106880.0,106840.0,0.55458022]
[1734453702701,0.046792,106850.0,106840.0,0.55458022]
[1734453702901,0.407589,106860.0,106840.0,0.55410022]
[1734453703105,0.407589,106860.0,106850.0,0.13133193]
[1734453703306,0.407589,106860.0,106850.0,0.046792]
[1734453703506,0.3608,106860.0,106850.0,0.046792]
[1734453703714,0.3608,106860.0,106850.0,0.04691301]
[1734453704109,0.3608,106860.0,106850.0,0.13145294]
[1734453704409,0.407587,106860.0,106850.0,0.13145294]
[1734453704619,0.407587,106860.0,106850.0,0.04691301]
[1734453704917,0.407587,106860.0,106850.0,0.00012101]
[1734453705414,0.49212693,106860.0,106850.0,0.00012101]
[1734453705915,0.85292693,106860.0,106850.0,0.00012101]
[1734453707020,0.49212693,106860.0,106850.0,0.00012101]
[1734453707309,0.49212693,106860.0,106850.0,0.13145294]
[1734453707310,0.3608,106860.0,106850.0,0.13145294]
[1734453707707,0.3608,106860.0,106850.0,0.04691301]
[1734453707918,1.13685246,106880.0,106870.0,0.046783]
[1734453708105,1.13685246,106880.0,106860.0,0.046786]
[1734453708307,1.10000324,106880.0,106860.0,0.046786]
[1734453709116,0.046783,106870.0,106860.0,0.046786]
[1734453709417,0.407583,106870.0,106860.0,0.046786]
[1734453710117,0.407583,106870.0,106850.0,0.54575094]
[1734453710314,0.407583,106870.0,106850.0,0.46121101]
[1734453710813,0.407583,106870.0,106860.0,0.046787]
[1734453711310,0.046783,106870.0,106860.0,0.046787]
[1734453711518,0.046787,106860.0,106850.0,0.46121201]
[1734453711714,0.13132693,106860.0,106850.0,0.20302101]
[1734453711909,0.13132693,106860.0,106850.0,0.00012101]
[1734453712112,0.49212693,106860.0,106850.0,0.00012101]
[1734453712311,2.19812693,106860.0,106850.0,0.00012101]
[1734453712711,0.78266686,106860.0,106850.0,0.00012101]
[1734453712907,0.69812693,106860.0,106850.0,0.00012101]
[1734453713113,2.19812693,106860.0,106850.0,0.00012101]
[1734453714616,2.21392527,106860.0,106850.0,0.00012101]
[1734453715522,1.85312527,106860.0,106850.0,0.00012101]
[1734453715821,2.21392527,106860.0,106850.0,0.00012101]
[1734453716719,0.71392527,106860.0,106850.0,0.00012101]
[1734453718318,0.3608,106860.0,106850.0,0.00012101]
[1734453718617,0.44645994,106870.0,106860.0,0.046787]
[1734453718618,0.046784,106870.0,106860.0,0.046787]
[1734453718927,0.046787,106860.0,106850.0,0.04691101]
[1734453719315,0.046787,106860.0,106850.0,0.00012101]
[1734453719512,0.13132693,106860.0,106850.0,0.04691301]
[1734453719718,0.49212693,106860.0,106850.0,0.00012101]
[1734453720314,1.907587,106860.0,106850.0,0.00012101]
[1734453720616,0.407587,106860.0,106850.0,0.00012101]
[1734453721012,0.49212693,106860.0,106850.0,0.00012101]
[1734453723127,0.50826266,106860.0,106850.0,0.00012101]
[1734453723831,0.59280259,106860.0,106850.0,0.00012101]
[1734453725111,0.046792,106850.0,106840.0,0.00140393]
[1734453725320,1.12263193,106850.0,106840.0,0.00140393]
[1734453726116,1.12263193,106850.0,106840.0,0.0014778]
[1734453727019,1.12263193,106850.0,106840.0,7.387e-05]
[1734453727216,0.046803,106830.0,106810.0,0.825206]
[1734453727411,0.407603,106830.0,106820.0,0.046805]
[1734453728032,0.407598,106840.0,106820.0,0.046805]
[1734453728330,0.407598,106840.0,106830.0,7.394e-05]
[1734453728910,0.49213793,106840.0,106830.0,7.394e-05]
[1734453729115,0.49213793,106840.0,106810.0,0.68324104]
[1734453729317,0.407605,106820.0,106810.0,0.47905551]
[1734453729515,0.407605,106820.0,106810.0,0.06145551]
[1734453729718,0.046809,106810.0,106800.0,0.304]
[1734453729925,0.046809,106810.0,106800.0,0.146814]
[1734453729926,0.3608,106810.0,106800.0,0.146814]
[1734453730120,8.097e-05,106810.0,106800.0,0.1469019]
[1734453730434,8.097e-05,106810.0,106800.0,0.59224183]
[1734453730723,8.097e-05,106810.0,106800.0,0.97678176]
[1734453730920,8.097e-05,106810.0,106800.0,0.59224183]
[1734453731820,8.097e-05,106810.0,106800.0,0.5077019]
[1734453732029,0.40768997,106810.0,106800.0,0.1469019]
[1734453732527,0.4922299,106810.0,106800.0,0.11438286]
[1734453732825,0.4922299,106810.0,106800.0,0.1000879]
[1734453733020,0.8953299,106810.0,106800.0,0.1000879]
[1734453736127,0.76398097,106810.0,106800.0,0.1469019]
[1734453736324,0.81078997,106810.0,106800.0,0.1469019]
[1734453736517,0.82575272,106810.0,106800.0,0.1469019]
[1734453736717,0.91029265,106810.0,106800.0,0.1469019]
[1734453737926,0.91029265,106810.0,106800.0,0.1000879]
[1734453739223,0.046822,106780.0,106770.0,0.21926436]
[1734453739418,0.49216193,106780.0,106770.0,0.21926436]
[1734453739620,0.48634209,106780.0,106770.0,0.21926436]
[1734453739822,0.69974209,106780.0,106770.0,0.2105]
[1734453740024,0.046827,106770.0,106760.0,0.2738389]
[1734453740327,0.046831,106760.0,106750.0,0.470535]
[1734453740523,0.44533993,106770.0,106750.0,0.470535]
[1734453740524,0.69596893,106770.0,106750.0,0.470535]
[1734453740721,0.611429,106770.0,106750.0,0.470532]
[1734453741526,0.611429,106770.0,106760.0,0.046831]
[1734453741821,2.111429,106770.0,106760.0,0.046831]
[1734453742533,0.046831,106760.0,106750.0,0.470533]
[1734453742728,0.046831,106760.0,106750.0,0.2142]
[1734453742919,0.49217093,106760.0,106750.0,0.2142]
[1734453743126,0.49217093,106760.0,106740.0,0.3608]
[1734453743321,0.04684,106740.0,106730.0,0.2099]
[1734453743525,0.43951616,106740.0,106730.0,0.2099]
[1734453743833,0.43951616,106740.0,106720.0,0.254047]
[1734453744029,0.48635816,106740.0,106720.0,0.463947]
[1734453744331,0.046844,106730.0,106720.0,0.463947]
[1734453744730,0.4922522,106730.0,106720.0,0.256747]
[1734453744927,0.40771227,106730.0,106720.0,0.256747]
[1734453745133,0.40771227,106730.0,106720.0,0.046847]
[1734453745330,0.1314522,106730.0,106720.0,0.046847]
[1734453745833,0.04691227,106730.0,106720.0,0.046847]
[1734453746222,6.827e-05,106730.0,106720.0,0.49218693]
[1734453746530,0.06703625,106770.0,106760.0,0.046831]
[1734453746725,0.06563055,106770.0,106760.0,0.046831]
[1734453746926,0.01880255,106770.0,106760.0,0.49217093]
[1734453747330,0.06562955,106770.0,106760.0,0.4922392]
[1734453748633,0.01880255,106770.0,106760.0,0.4922392]
[1734453748836,0.04692095,106780.0,106770.0,0.046827]
[1734453749233,0.04692095,106780.0,106770.0,0.13136693]
[1734453749431,0.04692095,106780.0,106770.0,0.08453993]
[1734453749432,0.40772095,106780.0,106770.0,0.08453993]
[1734453749734,0.046827,106770.0,106760.0,0.4922382]
[1734453750234,0.046827,106770.0,106760.0,0.1314382]
[1734453751029,0.046827,106770.0,106760.0,0.1314392]
[1734453752836,0.046827,106770.0,106760.0,0.4922392]
[1734453753033,0.046827,106770.0,106760.0,0.50597179]
[1734453754245,9.695e-05,106780.0,106770.0,0.046827]
[1734453754541,9.695e-05,106780.0,106770.0,0.78470686]
[1734453755733,9.695e-05,106780.0,106770.0,0.70016693]
[1734453755944,0.04691895,106780.0,106770.0,0.70016693]
[1734453757146,0.04691895,106780.0,106770.0,0.49216693]
[1734453757438,0.046827,106770.0,106760.0,0.50597079]
[1734453757648,0.36089695,106780.0,106760.0,0.50597079]
[1734453757944,0.36089695,106780.0,106770.0,0.21590686]
[1734453758140,0.36089695,106780.0,106770.0,0.13136693]
[1734453758544,9.695e-05,106780.0,106770.0,0.13136693]
[1734453758733,9.695e-05,106780.0,106770.0,0.57670686]
[1734453759843,1.50140526,106800.0,106780.0,0.046822]
[1734453760140,0.407611,106810.0,106790.0,0.71125793]
[1734453760343,0.3608,106810.0,106800.0,0.13135393]
[1734453760752,0.046809,106810.0,106800.0,0.13135393]
[1734453761048,1.98347772,106820.0,106810.0,0.046809]
[1734453761246,2.00202001,106820.0,106810.0,0.13134893]
[1734453761445,0.50202001,106820.0,106810.0,0.046809]
[1734453761849,0.046809,106810.0,106800.0,0.046812]
[1734453762041,0.046809,106810.0,106790.0,0.046817]
[1734453762042,0.046814,106800.0,106790.0,0.046817]
[1734453762544,0.407614,106800.0,106790.0,0.046817]
[1734453762943,0.046818,106790.0,106780.0,0.046822]
[1734453763146,0.046818,106790.0,106780.0,0.046821]
[1734453763147,0.046821,106790.0,106780.0,0.046821]
[1734453763335,0.046821,106790.0,106780.0,0.13136093]
[1734453764245,0.407616,106800.0,106790.0,0.046818]
[1734453764438,0.407616,106800.0,106790.0,0.13135793]
[1734453765040,0.407616,106800.0,106780.0,0.13135893]
[1734453765352,0.046818,106790.0,106780.0,0.13135893]
[1734453765552,0.407616,106800.0,106790.0,0.046818]
[1734453768147,1.907616,106800.0,106790.0,0.046818]
[1734453768348,1.92136052,106800.0,106790.0,0.046818]
[1734453768547,0.407616,106800.0,106790.0,0.046818]
[1734453768745,0.3608,106800.0,106790.0,0.13135793]
[1734453768943,1.54681,106810.0,106800.0,0.046814]
[1734453769554,1.90761,106810.0,106800.0,0.046814]
[1734453769855,0.046815,106800.0,106790.0,0.046817]
[1734453770349,0.407615,106800.0,106790.0,0.046817]
[1734453771756,0.046815,106800.0,106790.0,0.046817]
[1734453771955,0.407615,106800.0,106790.0,0.046817]
[1734453772252,0.04682,106790.0,106780.0,0.046821]
[1734453772444,0.046822,106780.0,106770.0,0.06200024]
[1734453773061,0.44982,106790.0,106770.0,0.1327717]
[1734453773241,0.44982,106790.0,106780.0,0.046822]
[1734453773853,1.94982,106790.0,106780.0,0.046822]
[1734453774154,2.31062,106790.0,106780.0,0.046822]
[1734453774658,1.94982,106790.0,106780.0,0.046822]
[1734453774956,0.44982,106790.0,106780.0,0.046822]
[1734453775158,0.7638,106790.0,106780.0,0.046822]
[1734453775657,0.403,106790.0,106780.0,0.046822]
[1734453775850,0.41647553,106790.0,106780.0,0.046822]
[1734453776049,0.41647553,106790.0,106780.0,0.13136193]
[1734453776260,0.2024,106790.0,106780.0,0.49216193]
[1734453776557,0.826212,106810.0,106800.0,0.046814]
[1734453776852,1.032512,106810.0,106800.0,0.046814]
[1734453778061,2.532512,106810.0,106800.0,0.046814]
[1734453778256,2.532512,106810.0,106800.0,0.43471997]
[1734453778555,2.2798,106810.0,106800.0,0.43471997]
[1734453778757,2.0671,106810.0,106800.0,0.5192599]
[1734453779153,1.7063,106810.0,106800.0,0.5192599]
[1734453779352,1.7063,106810.0,106800.0,0.96075327]
[1734453779552,1.753109,106810.0,106800.0,1.32155327]
[1734453779757,1.753109,106810.0,106800.0,0.84910737]
[1734453780254,1.753109,106810.0,106800.0,0.85788167]
[1734453780457,1.753109,106810.0,106800.0,0.84910737]
[1734453780663,1.753109,106810.0,106800.0,0.48830737]
[1734453780962,1.753109,106810.0,106800.0,0.43575731]
[1734453781758,0.046814,106800.0,106790.0,0.44149337]
[1734453782051,0.046814,106800.0,106780.0,0.38894331]
[1734453782052,0.046818,106790.0,106780.0,0.38894331]
[1734453782258,0.622018,106790.0,106780.0,0.38894331]
[1734453782458,0.622018,106790.0,106780.0,0.83043668]
[1734453782647,0.622018,106790.0,106780.0,0.44149337]
[1734453782847,0.622018,106790.0,106780.0,0.48831537]
[1734453783251,0.622018,106790.0,106780.0,0.49708967]
[1734453783554,0.50974312,106790.0,106780.0,0.50463605]
[1734453783759,0.50974312,106790.0,106780.0,0.49586175]
[1734453783956,0.50974312,106790.0,106780.0,0.94115962]
[1734453784155,0.50974312,106790.0,106780.0,0.44529787]
[1734453784456,0.046822,106780.0,106770.0,0.45177935]
[1734453784659,0.50974512,106790.0,106780.0,0.046822]
[1734453785762,0.046822,106780.0,106770.0,0.06215706]
[1734453785951,0.242022,106780.0,106770.0,0.06215706]
[1734453787162,0.602822,106780.0,106770.0,0.06215706]
[1734453787455,0.1952,106780.0,106770.0,0.42295706]
[1734453787655,0.1952,106780.0,106770.0,0.50749699]
[1734453787861,0.1952,106780.0,106770.0,0.89711828]
[1734453788360,0.1952,106780.0,106770.0,0.81257835]
[1734453788559,0.242022,106780.0,106770.0,0.81257835]
[1734453789754,0.50974412,106790.0,106780.0,0.046822]
[1734453789951,0.046819,106790.0,106780.0,0.407622]
[1734453790351,0.046819,106790.0,106780.0,0.79724329]
[1734453790551,0.046819,106790.0,106780.0,0.046822]
[1734453790748,0.13135893,106790.0,106780.0,0.046822]
[1734453790948,0.49215893,106790.0,106780.0,0.046822]
[1734453791148,0.407619,106790.0,106780.0,0.046822]
[1734453791557,0.407619,106790.0,106760.0,0.96967251]
[1734453791863,0.046824,106780.0,106770.0,0.046823]
[1734453792051,0.046824,106780.0,106770.0,0.49210587]
[1734453792561,0.046824,106780.0,106770.0,0.49220282]
[1734453793258,0.13136393,106780.0,106770.0,0.44537982]
[1734453793557,0.49216393,106780.0,106770.0,0.94587858]
[1734453793759,0.68546393,106780.0,106770.0,0.38967309]
[1734453794259,0.68546393,106780.0,106770.0,0.83476184]
[1734453794456,0.68546393,106780.0,106770.0,0.38967309]
[1734453795972,0.68546393,106780.0,106770.0,9.695e-05]
[1734453796960,1.07000386,106780.0,106770.0,9.695e-05]
[1734453797160,0.046827,106770.0,106760.0,0.38957614]
[1734453797465,0.046831,106760.0,106750.0,0.83444485]
[1734453797657,0.49217093,106760.0,106750.0,0.3893561]
[1734453798160,0.04684,106740.0,106730.0,0.26676623]
[1734453798464,0.49217993,106740.0,106730.0,0.00140526]
[1734453798762,0.68547993,106740.0,106730.0,0.00140526]
[1734453799157,0.62111197,106740.0,106730.0,0.04824926]
[1734453799360,0.66795197,106740.0,106730.0,0.00140526]
[1734453799756,0.66795197,106740.0,106730.0,0.04824926]
[1734453799960,0.53657204,106740.0,106730.0,0.04824926]
[1734453800557,0.1933,106740.0,106730.0,0.04824926]
[1734453800759,0.60094,106740.0,106730.0,0.04824926]
[1734453800953,0.60094,106740.0,106730.0,0.00140526]
[1734453801154,0.89957993,106740.0,106730.0,0.00140526]
[1734453803769,0.89957993,106740.0,106730.0,0.04824926]
[1734453804656,0.89957993,106740.0,106730.0,0.00140526]
[1734453805469,0.046844,106730.0,106720.0,0.046847]
[1734453805672,0.046844,106730.0,106710.0,0.6108]
[1734453805673,0.046849,106720.0,106710.0,0.67051022]
[1734453806563,0.78101003,106740.0,106720.0,0.046849]
[1734453806862,0.5541,106740.0,106730.0,0.046844]
[1734453807062,0.60094,106740.0,106730.0,0.046844]
[1734453807265,0.68547993,106740.0,106720.0,0.407646]
[1734453807567,0.49218393,106730.0,106710.0,0.67102922]
[1734453807769,0.046849,106720.0,106710.0,0.67050922]
[1734453807960,0.407649,106720.0,106710.0,0.67050922]
[1734453808464,0.407649,106720.0,106710.0,1.11426703]
[1734453809170,0.3608,106720.0,106710.0,1.50257131]
[1734453809366,0.046846,106730.0,106720.0,0.046849]
[1734453809560,0.046846,106730.0,106720.0,0.43520108]
[1734453810472,0.407646,106730.0,106720.0,0.43520108]
[1734453810662,0.046846,106730.0,106720.0,0.43520108]
[1734453810862,0.63250598,106740.0,106730.0,0.046844]
[1734453811064,0.046847,106730.0,106720.0,0.046848]
[1734453811272,0.407647,106730.0,106720.0,0.43520008]
[1734453811567,0.407647,106730.0,106720.0,0.046848]
[1734453811968,0.046849,106720.0,106710.0,1.0588623]
[1734453812267,0.407649,106720.0,106710.0,1.0588623]
[1734453812674,0.407649,106720.0,106710.0,0.67051022]
[1734453813671,0.49218893,106720.0,106710.0,0.4029]
[1734453813877,0.49218893,106720.0,106700.0,0.89600908]
[1734453813878,0.046853,106710.0,106700.0,0.1]
[1734453814066,0.49219293,106710.0,106700.0,0.1]
[1734453814468,2.20169293,106710.0,106700.0,0.1]
[1734453814664,0.70169293,106710.0,106700.0,0.1]
[1734453814875,0.70169293,106710.0,106700.0,0.146858]
[1734453815676,0.617153,106710.0,106700.0,0.146858]
[1734453816475,0.78623286,106710.0,106700.0,0.1]
[1734453816669,0.70169293,106710.0,106700.0,0.1]
[1734453817068,0.617153,106710.0,106700.0,0.146858]
[1734453817471,0.70169293,106710.0,106700.0,0.1]
[1734453818272,0.70169293,106710.0,106700.0,0.08413412]
[1734453819774,0.78623286,106710.0,106700.0,0.08413412]
[1734453819970,0.046858,106700.0,106690.0,0.00140586]
[1734453820167,0.49219793,106700.0,106690.0,0.00140586]
[1734453820570,0.407658,106700.0,106690.0,0.00140586]
[1734453820883,0.70169493,106710.0,106700.0,0.046858]
[1734453821386,0.046858,106700.0,106690.0,0.04826586]
[1734453821684,0.407658,106700.0,106690.0,0.04826586]
[1734453822268,0.046858,106700.0,106690.0,0.04826586]
[1734453822982,0.046862,106690.0,106680.0,0.26117847]
[1734453823278,0.407662,106690.0,106680.0,0.26117847]
[1734453824269,0.40766,106700.0,106680.0,0.57511247]
[1734453824469,0.40766,106700.0,106690.0,0.046862]
[1734453825176,0.617154,106710.0,106700.0,0.046858]
[1734453825372,0.90771588,106720.0,106710.0,0.046853]
[1734453825574,1.78002471,106720.0,106710.0,0.046853]
[1734453825774,1.58112471,106720.0,106710.0,0.046853]
[1734453825977,1.56539876,106720.0,106710.0,0.046853]
[1734453826177,0.06539876,106720.0,106710.0,0.046853]
[1734453827787,0.046853,106710.0,106700.0,1.023194]
[1734453828085,0.046853,106710.0,106700.0,0.662394]
[1734453828281,0.046853,106710.0,106700.0,0.244355]
[1734453828484,0.49219293,106710.0,106700.0,0.1975]
[1734453828691,0.046858,106700.0,106690.0,0.244961]
[1734453828989,0.046858,106700.0,106690.0,0.4047]
[1734453829387,0.046858,106700.0,106690.0,0.42085968]
[1734453829583,1.546858,106700.0,106690.0,0.80122075]
[1734453830083,1.907658,106700.0,106690.0,0.34965875]
[1734453830287,1.907658,106700.0,106690.0,0.33349907]
[1734453830288,2.19239793,106700.0,106690.0,0.33349907]
[1734453830877,0.046862,106690.0,106680.0,0.29981908]
[1734453831084,0.49220193,106690.0,106680.0,0.29981908]
[1734453831481,0.49220193,106690.0,106680.0,0.27841845]
[1734453831676,0.046869,106680.0,106670.0,0.046871]
[1734453831884,1.907669,106680.0,106670.0,0.046871]
[1734453834882,0.407669,106680.0,106670.0,0.046871]
[1734453835284,0.3608,106690.0,106670.0,0.13141093]
[1734453835487,0.046863,106690.0,106670.0,0.08453993]
[1734453835686,0.046867,106680.0,106670.0,0.046868]
[1734453837291,0.0410441,106680.0,106660.0,0.83138602]
[1734453837595,0.046871,106670.0,106660.0,0.83138602]
[1734453838890,0.046871,106670.0,106660.0,0.47058602]
[1734453839190,0.046871,106670.0,106660.0,0.91592595]
[1734453839786,0.046868,106680.0,106670.0,0.046866]
[1734453841187,0.407664,106690.0,106680.0,0.046866]
[1734453841388,0.04687,106680.0,106670.0,0.046868]
[1734453842193,0.04687,106680.0,106670.0,0.13140793]
[1734453842488,1.92612629,106690.0,106680.0,0.046866]
[1734453842695,1.56532629,106690.0,106680.0,0.046866]
[1734453842896,1.92612629,106690.0,106680.0,0.13140593]
[1734453843089,1.92612629,106690.0,106680.0,0.046866]
[1734453843987,1.92612629,106690.0,106660.0,1.30427703]
[1734453844195,0.04687,106680.0,106670.0,0.046868]
[1734453845088,0.04687,106680.0,106670.0,0.49220793]
[1734453846093,0.04687,106680.0,106670.0,0.51976001]
[1734453847297,0.04687,106680.0,106670.0,0.43522008]
[1734453848502,0.40767,106680.0,106670.0,0.43522008]
[1734453848690,0.04687,106680.0,106670.0,0.046868]
[1734453849597,1.92612629,106690.0,106680.0,0.046866]
[1734453849789,1.92612629,106690.0,106680.0,0.13140593]
[1734453849994,0.046866,106680.0,106670.0,0.51976001]
[1734453850190,0.046866,106680.0,106670.0,0.43522008]
[1734453850795,0.046866,106680.0,106670.0,0.79602008]
[1734453851701,0.046866,106680.0,106670.0,0.85142581]
[1734453851909,0.046866,106680.0,106670.0,0.407668]
[1734453852497,1.56532529,106690.0,106680.0,0.046866]
[1734453852697,1.56532529,106690.0,106680.0,0.38099506]
[1734453853198,0.06532529,106690.0,106680.0,0.82633499]
[1734453853403,0.561,106700.0,106690.0,0.046862]
[1734453853601,0.3608,106700.0,106690.0,0.67227232]
[1734453853795,0.407658,106700.0,106690.0,0.58773239]
[1734453855597,0.407658,106700.0,106690.0,0.253662]
[1734453855998,0.046858,106700.0,106690.0,0.253662]
[1734453856610,0.046858,106700.0,106690.0,0.69900193]
[1734453856797,0.046858,106700.0,106690.0,0.9290455]
[1734453856994,1.74976036,106710.0,106700.0,0.046858]
[1734453857305,1.74976036,106710.0,106700.0,0.13139793]
[1734453857607,1.76802972,106710.0,106700.0,0.13139793]
[1734453858302,1.76802972,106710.0,106700.0,0.51975001]
[1734453858694,1.56512336,106710.0,106700.0,0.49219793]
[1734453859201,1.56512336,106710.0,106700.0,0.13139793]
[1734453860095,1.56512336,106710.0,106700.0,0.046858]
[1734453861105,1.56512336,106710.0,106700.0,0.13139793]
[1734453866310,1.92592336,106710.0,106700.0,0.13139793]
[1734453866505,1.56512336,106710.0,106700.0,0.13139793]
[1734453868515,1.51826936,106710.0,106700.0,0.51975001]
[1734453868711,1.51826936,106710.0,106700.0,0.13139793]
[1734453868906,1.5,106710.0,106700.0,0.51975001]
[1734453869212,1.546853,106710.0,106700.0,0.51975001]
[1734453869609,1.546853,106710.0,106700.0,0.13139793]
[1734453870917,1.546853,106710.0,106690.0,1.63479936]
[1734453871112,1.546853,106710.0,106700.0,0.046858]
[1734453871315,1.546853,106710.0,106700.0,0.13139793]
[1734453872017,0.2118,106720.0,106710.0,0.046853]
[1734453872212,0.3608,106730.0,106720.0,0.046849]
[1734453872405,0.407644,106730.0,106720.0,0.13138893]
[1734453872610,0.046849,106720.0,106710.0,0.88773419]
[1734453872918,0.046849,106720.0,106710.0,0.87895989]
[1734453873103,0.046849,106720.0,106710.0,0.51974201]
[1734453873309,0.046849,106720.0,106710.0,0.13138993]
[1734453873710,0.046849,106720.0,106710.0,0.49218993]
[1734453873925,0.046849,106720.0,106710.0,0.13138993]
[1734453874113,0.046849,106720.0,106700.0,0.3608]
[1734453874309,0.046853,106710.0,106700.0,0.046857]
[1734453874513,0.242553,106710.0,106700.0,0.046857]
[1734453874917,1.742553,106710.0,106700.0,0.046857]